[Event "2nd Bundesliga Nord 2024-25"]
[Site "Germany"]
[Date "2025.02.22"]
[Round "8.14"]
[White "Galperin, Platon"]
[Black "Korotkjevich, Stanislav"]
[Result "1-0"]
[Annotator "TA"]
[ECO "B00"]
[WhiteElo "2495"]
[BlackElo "2360"]
[PlyCount "43"]
[EventDate "2024.11.29"]
[EventType "team-tourn"]
[EventCountry "GER"]
[SourceTitle "playchess.com"]
[Source "ChessBase"]
[SourceQuality "1"]
[WhiteTeam "Wolfhagen"]
[BlackTeam "SG Porz"]
[TimeControl "40/5400+30:1800+30"]

{[%evp 14,43,108,107,163,156,162,195,144,172,194,193,204,191,222,236,237,242,240,230,308,278,469,464,514,508,480,329,818,777,804,785]} 1. e4 {[%emt 0:00:31]} Nc6 {[%emt 0:00:06]} 2. Nf3 {[%emt 0:00:17]} d6 {[%emt 0:00:04]} 3. d4 {[%emt 0:00:49]} Nf6 {[%emt 0:00:07]} 4. Nc3 {[%emt 0:02:15]} Bg4 {[%emt 0:00:36][%cal Bc8g4,Bg4h5,Bh5g6][%mdl 32]} 5. Be3 {[%emt 0:02:41]} e6 {[%emt 0:04:05]} 6. h3 {[%emt 0:01:54]} Bh5 {[%emt 0:03:14]} 7. d5 {[%emt 0:02:37]} exd5 {[%emt 0:05:25]} 8. exd5 {[%emt 0:02:02]} Nb8 {[%emt 0:00:19] B00: Queen's Fianchetto Defence, Nimzowitsch Defence.} (8... Ne5 $16 {might work better.}) 9. g4 $18 {[%emt 0:01:31]} Bg6 {[%emt 0:00:04]} 10. Bg2 {[%emt 0:00:03]} Be7 {[%emt 0:01:57] White is clearly better.} 11. Nd4 {[%emt 0:01:01] White is more active.} Nfd7 {[%emt 0:05:18]} 12. Qd2 $146 {[%emt 0:05:28]} (12. O-O h5 13. f4 hxg4 14. hxg4 Nb6 15. b3 N8d7 16. Qe2 O-O 17. g5 Re8 18. Rae1 {1-0 Piorun,K (2528)-Korotkjevich,S (2371) Neckar op-A 19th 2015 (5)}) 12... Nb6 {[%emt 0:02:41]} 13. b3 {[%emt 0:00:07] Prevents Nc4} N8d7 {[%emt 1:13:04]} 14. O-O-O {[%emt 0:04:00]} a5 {[%emt 0:00:00]} 15. f4 {[%emt 0:00:16][%cal Bf2f4,Bf4g5][%mdl 32] f5 would now be deadly.} h6 {[%emt 0:00:00]} 16. a4 {[%emt 0:00:25]} Nc5 {[%emt 0:00:00] [#]} 17. h4 $1 {[%emt 0:02:23][%mdl 512]} Bxh4 $2 {[%emt 0:00:00]} (17... Bh7 18. g5 Nbd7) (17... Nbd7 18. f5) 18. g5 {[%emt 0:03:00]} (18. f5 Bh7 19. Ndb5 Rc8 20. Bxc5 dxc5 $18) 18... hxg5 {[%emt 0:00:00]} 19. fxg5 {[%emt 0:00:10]} Rh5 {[%emt 0:00:00]} 20. Bf4 {[%emt 0:04:46] Dodges Bg3} ({Less strong is} 20. Bf3 Rh7 21. Ndb5 Bf5 22. Bxc5 dxc5) 20... f6 $2 {[%emt 0:00:00] [#]} (20... Bxg5 $2 {loses.} 21. Rxh5 Bxh5 22. Bxg5 $18) (20... Qxg5 21. Rde1+ (21. Bxg5 Bxg5 22. Rde1+ Kd7 $18) 21... Kd7) 21. Rxh4 $1 {[%emt 0:00:47]} Rxh4 {[%emt 0:00:00]} 22. Qe1+ {[%emt 0:00:05] Black got outplayed after the opening.   Weighted Error Value: White=0.15 (very precise) /Black=0.60  Mistake:       	---       	Black=2      Inaccurate:     	White=1     	Black=1      OK:         	White=8     	Black=5      Best:        	White=1     	Black=1} 1-0

[Event "2nd Bundesliga Nord 2024-25"]
[Site "Germany"]
[Date "2025.02.22"]
[Round "8.15"]
[White "Pauly, Carlo"]
[Black "Vetoshko, Volodymyr"]
[Result "0-1"]
[Annotator "TA"]
[ECO "D35"]
[WhiteElo "2319"]
[BlackElo "2529"]
[PlyCount "56"]
[EventDate "2024.11.29"]
[EventType "team-tourn"]
[EventCountry "GER"]
[SourceTitle "playchess.com"]
[Source "ChessBase"]
[SourceQuality "1"]
[WhiteTeam "SG Porz"]
[BlackTeam "Wolfhagen"]
[TimeControl "40/5400+30:1800+30"]

{[%evp 12,56,17,12,10,-49,-36,-40,-43,-29,-31,-39,-36,-48,-40,-36,-28,-36,-39,-51,-55,-64,-52,-46,-16,-58,-47,-46,-27,-35,0,-1,0,-172,-167,-174,-136,-147,-139,-269,-253,-241,-164,-227,-234,-482,-472]} 1. d4 {[%emt 0:00:03]} Nf6 {[%emt 0:00:22]} 2. c4 {[%emt 0:00:07]} e6 {[%emt 0:00:07]} 3. Nc3 {[%emt 0:00:18]} d5 {[%emt 0:00:35]} 4. Nf3 {[%emt 0:00:12]} Nbd7 {[%emt 0:00:47]} 5. Bf4 {[%emt 0:00:40]} Bb4 {[%emt 0:00:35]} 6. cxd5 {[%emt 0:03:05]} exd5 {[%emt 0:00:50]} 7. e3 {[%emt 0:01:10]} Ne4 {[%emt 0:01:14] D35: Queen's Gambit Declined: Exchange Variation.} 8. Nd2 {[%emt 0:10:51]} (8. Qc2 $11) 8... Nxc3 $15 {[%emt 0:09:10]} 9. bxc3 {[%emt 0:00:30]} Bxc3 {[%emt 0:00:42] Black is slightly better.} 10. Rc1 {[%emt 0:00:15]} Ba5 {[%emt 0:01:13]} 11. Bd3 {[%emt 0:10:28]} c6 {[%emt 0:02:44]} 12. O-O {[%emt 0:07:27] White sacrificed a pawn} Nf6 {[%emt 0:04:09]} 13. Nb3 {[%emt 0:02:06]} Bc7 {[%emt 0:02:06]} 14. Bxc7 {[%emt 0:00:25]} Qxc7 {[%emt 0:00:02]} 15. f3 {[%emt 0:00:22][%cal Bf2f3,Bf3e4,Be4e5][%mdl 32]} O-O {[%emt 0:00:53]} 16. e4 {[%emt 0:03:00]} dxe4 $146 {[%emt 0:11:09][%mdl 128] Black attacks.} ({Predecessor:} 16... Qf4 17. Qe1 Qh6 18. e5 Nh5 19. g3 g6 20. f4 Ng7 21. Qb4 Qh3 22. Rf2 h5 {½-½ Wang,I (2342)-Yim,S (2280) Las Vegas 1000 GM June GM-A 2024 (3)}) 17. fxe4 {[%emt 0:01:45]} Be6 {[%emt 0:17:23]} 18. e5 $1 {[%emt 0:13:09]} Nd7 {[%emt 0:03:12]} 19. Qh5 {[%emt 0:04:23][%csl Gd3][%cal Rh5h7] [#]} g6 {[%emt 0:06:01]} 20. Qh6 {[%emt 0:04:27][%cal Of1f6]} f5 {[%emt 0:11:18]} 21. g4 $1 {[%emt 0:15:03]} Qb6 {[%emt 0:02:40]} 22. Qe3 $2 {[%emt 0:09:29]} (22. gxf5 Bxb3 23. Rf4 Nxe5 (23... Bxa2 $2 24. f6 $18) 24. fxg6 Rxf4 (24... Nxd3 25. Qxh7#) 25. Qxh7+ Kf8 26. g7+ Ke8 27. axb3 Rg4+ (27... Rxd4 28. g8=Q#) (27... Qxd4+ 28. Kh1 $11) 28. Kh1 Qxd4 (28... Nxd3 $2 29. Rf1 $18) 29. g8=Q+ (29. g8=R+ Rxg8 30. Qxg8+ Ke7 $11) 29... Rxg8 30. Qxg8+ Ke7 31. Qg7+ (31. Qxa8 Qd5+ 32. Kg1 Qd4+ 33. Kh1 Qd5+ 34. Kg1 Qd4+ 35. Kh1 $11) 31... Kd6) (22. Rb1 $11 Qd8 (22... Nxe5 23. Nc5 $16) (22... Bxb3 23. Rf4 $14) 23. gxf5 Bxf5 24. Bxf5 Rxf5 25. Rxf5 gxf5 26. Kf2) 22... fxg4 $19 {[%emt 0:04:39]} 23. Nd2 {[%emt 0:00:12]} Rxf1+ {[%emt 0:04:54]} 24. Rxf1 {[%emt 0:01:02]} Rf8 {[%emt 0:01:57]} (24... Bxa2 25. e6 Nf8 (25... Re8 $2 26. Bc4 $18) 26. e7 $16) 25. Rxf8+ {[%emt 0:00:45]} (25. Rb1 $17 Qa5 26. Rxb7) 25... Nxf8 {[%emt 0:02:16]} 26. Ne4 {[%emt 0:00:13]} Nd7 {[%emt 0:02:45][%cal Ob6b2] Hoping for ...Qb2!.} (26... Bxa2 27. Nf6+ Kh8 28. Qf2) 27. Ng5 {[%emt 0:02:09] [#]} (27. Bc2) 27... c5 $1 {[%emt 0:03:49]} (27... Bxa2 28. e6 Nf6 29. e7 $11 (29. Qe5 Ne8 $17)) 28. Qe2 $2 (28. Nxe6 {was called for.} Qxe6 29. dxc5) 28... c4 {[%emt 0:00:30] Weighted Error Value: White=0.43/Black=0.14 (very precise)   Loses game:     	White=1     	---        Mistake:       	White=4     	---        Inaccurate:     	---       	Black=3      OK:         	White=8     	Black=5      Best:        	---       	Black=2      Strong:       	White=2     	Black=1} ({Weaker is} 28... cxd4 29. Nxe6 a6 (29... Qxe6 $2 {too greedy.} 30. Bc4 $18) 30. Ng5 $16 (30. Qxg4 $2 Nxe5 31. Qh3 Nxd3 $19)) 0-1

[Event "2nd Bundesliga Nord 2024-25"]
[Site "Germany"]
[Date "2025.02.22"]
[Round "8.16"]
[White "Bogdanov, Egor"]
[Black "Marcziter, Dmitrii"]
[Result "1-0"]
[Annotator "TA"]
[ECO "B28"]
[WhiteElo "2489"]
[BlackElo "2187"]
[PlyCount "75"]
[EventDate "2024.11.29"]
[EventType "team-tourn"]
[EventCountry "GER"]
[SourceTitle "playchess.com"]
[Source "ChessBase"]
[SourceQuality "1"]
[WhiteTeam "Wolfhagen"]
[BlackTeam "SG Porz"]
[TimeControl "40/5400+30:1800+30"]

{[%evp 16,75,50,36,37,39,87,81,102,61,63,57,50,52,57,54,41,35,86,99,79,85,98,98,91,69,64,67,103,99,130,124,124,128,153,150,519,491,532,533,526,515,510,522,537,572,676,674,766,773,862,856,825,859,832,798,1012,986,1354,1074,1300,1316]} 1. e4 {[%emt 0:00:03]} c5 {[%emt 0:00:11]} 2. Nf3 {[%emt 0:00:03]} a6 {[%emt 0:00:12]} 3. c3 {[%emt 0:00:44]} d5 {[%emt 0:01:01]} 4. exd5 {[%emt 0:00:18]} Qxd5 {[%emt 0:00:08]} 5. d4 {[%emt 0:00:18]} Nf6 {[%emt 0:00:24]} 6. Be2 {[%emt 0:00:53]} e6 {[%emt 0:00:20]} 7. O-O {[%emt 0:00:25]} Nc6 {[%emt 0:00:17]} 8. Be3 {[%emt 0:00:49][%cal Bc1e3,Be3d4,Bd4e5][%mdl 32]} cxd4 {[%emt 0:00:18]} 9. Nxd4 {[%emt 0:04:13]} Nxd4 {[%emt 0:05:29] B28: Sicilian: 2 Nf3 a6 (O'Kelly Variation).} 10. Bxd4 {[%emt 0:04:50]} Be7 {[%emt 0:03:03]} (10... Bc5 $14) 11. Bf3 $16 {[%emt 0:03:25]} Qd8 {[%emt 0:02:31] White is better.} 12. Nd2 {[%emt 0:07:35]} Qc7 {[%emt 0:05:40]} 13. Qe2 {[%emt 0:05:34]} Bd7 $146 {[%emt 0:02:40]} ({Predecessor:} 13... O-O 14. Nc4 Nd7 15. Rad1 Bc5 16. Rfe1 Rb8 17. b4 Bxd4 18. cxd4 b5 19. Na5 Nb6 {1-0 Rooze,J (2235)-Helmond,F (1958) Rheinland Pfalz Seniors op 21st 2024 (2)}) 14. Be5 {[%emt 0:05:18]} Qc8 {[%emt 0:02:30]} 15. Rfd1 {[%emt 0:21:50]} Bb5 {[%emt 0:08:02] Prevents Nc4} 16. Qe3 {[%emt 0:05:41]} Bc6 {[%emt 0:05:15]} (16... O-O $14) 17. Bxf6 $1 {[%emt 0:07:21]} Bxf6 {[%emt 0:22:14] [#]} 18. Nc4 $1 {[%emt 0:00:31]} Qc7 {[%emt 0:00:14]} 19. Nd6+ {[%emt 0:00:28]} Kf8 {[%emt 0:00:09]} 20. Bxc6 {[%emt 0:01:26]} Qxc6 {[%emt 0:01:13]} 21. Rd3 {[%emt 0:00:22]} Rd8 {[%emt 0:08:08]} 22. Rad1 {[%emt 0:00:56]} Be7 {[%emt 0:01:07][%cal Rd8d6] [#]} 23. Qe5 {[%emt 0:04:15][%cal Od6f5]} Bf6 {[%emt 0:02:30]} 24. Qf4 {[%emt 0:01:02] White is more active.} h5 {[%emt 0:06:43]} 25. Qb4 $40 {[%emt 0:06:10][%mdl 128] Threatens to win with Ne4+. White wants a kill.} Be7 $2 {[%emt 0:02:56] [#] Black cannot hold the game after this.} (25... Kg8 $16 {is a better chance.} 26. Ne4 (26. Qxb7 Qxb7 27. Nxb7 Rb8 $18) (26. Nxb7 Rxd3 27. Rxd3 Qc7 $16) 26... Rxd3 27. Nxf6+ (27. Rxd3 Be7 $14) 27... gxf6 28. Rxd3 Qc7) 26. Nc8 $1 $18 {[%emt 0:01:43] White is clearly winning.} Rxc8 {[%emt 0:04:07]} 27. Rd8+ {[%emt 0:00:08]} Qe8 {[%emt 0:00:07]} 28. Rxe8+ {[%emt 0:00:16]} Rxe8 {[%emt 0:00:10]} 29. Qxb7 {[%emt 0:00:06]} a5 {[%emt 0:00:17]} 30. b4 {[%emt 0:00:45]} axb4 {[%emt 0:00:08]} 31. cxb4 {[%emt 0:00:01][%cal Bc3b4,Bb4b5][%mdl 32]} h4 {[%emt 0:00:17][%cal Bh5h4,Bh4h3][%mdl 32]} 32. a4 {[%emt 0:00:11][%cal Ba2a4,Ba4a5,Ba5a6][%mdl 32]} h3 {[%emt 0:00:10]} 33. a5 {[%emt 0:00:06]} Rh4 {[%emt 0:00:18]} 34. b5 {[%emt 0:00:23]} Rg4 {[%emt 0:00:18]} 35. g3 {[%emt 0:00:33]} Ra4 {[%emt 0:00:20]} 36. a6 {[%emt 0:00:18]} Rd8 {[%emt 0:00:44]} 37. Rxd8+ {[%emt 0:00:41]} Bxd8 {[%emt 0:00:01]} 38. Kf1 {[%emt 0:00:02] Weighted Error Value: White=0.02 (flawless) /Black=0.70  Loses game:     	---       	Black=1      Mistake:       	---       	Black=2      Inaccurate:     	White=1     	Black=2      OK:         	White=11    	Black=5      Best:        	White=1     	Black=2      Strong:       	White=2     	Black=1      Brilliant:      	White=1     	---} 1-0

[Event "2nd Bundesliga Nord 2024-25"]
[Site "Germany"]
[Date "2025.02.23"]
[Round "9.1"]
[White "Nyback, Tomi"]
[Black "Lutz, Christopher"]
[Result "1-0"]
[Annotator "TA"]
[ECO "D35"]
[WhiteElo "2589"]
[BlackElo "2524"]
[PlyCount "65"]
[EventDate "2024.11.29"]
[EventType "team-tourn"]
[EventCountry "GER"]
[SourceTitle "playchess.com"]
[Source "ChessBase"]
[SourceQuality "1"]
[TimeControl "40/5400+30:1800+30"]

{[%evp 11,65,7,6,8,5,0,0,0,0,-31,0,6,26,22,96,33,96,93,89,97,99,104,114,108,120,83,83,77,167,80,271,273,268,267,364,349,413,421,589,582,579,589,579,579,616,604,645,574,578,565,579,571,628,608,653,643]} 1. d4 {[%emt 0:00:05]} Nf6 {[%emt 0:00:08]} 2. c4 {[%emt 0:00:05]} e6 {[%emt 0:00:07]} 3. Nf3 {[%emt 0:00:05]} d5 {[%emt 0:00:13]} 4. Nc3 {[%emt 0:00:05]} Be7 {[%emt 0:00:08]} 5. cxd5 {[%emt 0:00:07]} exd5 {[%emt 0:00:13]} 6. Bf4 {[%emt 0:00:08]} c6 {[%emt 0:01:49]} 7. h3 {[%emt 0:01:13] D35: Queen's Gambit Declined: Exchange Variation.} Bf5 {[%emt 0:34:03] Prevents Qc2} 8. g4 {[%emt 0:01:40]} Be4 {[%emt 0:00:13]} 9. e3 {[%emt 0:01:21] The position is equal.} Nbd7 {[%emt 0:04:21]} 10. g5 {[%emt 0:35:46]} Nh5 {[%emt 0:25:59] Threatens to win with ...Nxf4.} (10... Qb6 $5 11. Nxe4 (11. gxf6 Bxf3 12. fxg7 Rg8 $17) 11... Nxe4 $15) 11. Bh2 {[%emt 0:00:56]} Bg6 $146 {[%emt 0:04:35]} (11... Bxf3 12. Qxf3 g6 13. h4 Nb6 14. Bd3 Bd6 15. Bxd6 Qxd6 16. Qh3 Qd7 17. Be2 Qxh3 18. Rxh3 {½-½ Chen,Y (2363)-Guo,Q (2378) CHN-chT (Women) 2024 (2.1)}) 12. Rg1 {[%emt 0:07:41]} h6 {[%emt 0:02:05]} (12... Qb6 $11) 13. Nh4 $16 {[%emt 0:18:02] [#]} hxg5 {[%emt 0:01:06]} (13... Bxg5 $14 14. Nxg6 fxg6) 14. Nxg6 {[%emt 0:00:26]} fxg6 {[%emt 0:00:08]} 15. Bd3 {[%emt 0:00:48] White sacrificed a pawn} Nf8 {[%emt 0:00:33]} 16. Qc2 {[%emt 0:01:01][%mdl 1024] White has strong compensation.} Kf7 {[%emt 0:02:35]} 17. O-O-O {[%emt 0:08:33]} Rh6 {[%emt 0:02:27]} 18. Rg4 {[%emt 0:01:11] White is much more active.} Qd7 {[%emt 0:01:09]} 19. Rdg1 {[%emt 0:00:51]} Qe6 {[%emt 0:03:51] [#]} (19... Re8 $16) 20. Be5 {[%emt 0:20:26]} (20. Ne4 $1 $18 {has better winning chances.}) 20... Bd6 $2 {[%emt 0:03:01] This move loses the game for Black.} (20... Kg8 $16) 21. Rxg5 $18 {[%emt 0:00:00]} Bxe5 {[%emt 0:05:07]} 22. dxe5 {[%emt 0:00:00][%cal Oc3e4] aiming for Ne4!.} (22. Rxe5 Qxh3 23. Reg5 Kg8 $16) 22... Rd8 {[%emt 0:00:25]} 23. Ne2 {[%emt 0:00:00]} ({Don't take} 23. f4 Qxh3 24. Nd1 (24. Bxg6+ Nxg6 25. Rxg6 Qxe3+ 26. Kb1 Kg8 $15) 24... Ke7 $18) 23... c5 {[%emt 0:00:04][%cal Bc6c5,Bc5c4][%mdl 32] Prevents Nd4.} 24. e4 {[%emt 0:00:00]} (24. Qxc5 $2 Rc8 $19 (24... Qxh3 $2 {is the wrong capture.} 25. R5g4 $18)) 24... c4 {[%emt 0:03:47] White is clearly winning.} 25. exd5 {[%emt 0:00:00]} cxd3 {[%emt 0:00:04]} 26. dxe6+ {[%emt 0:00:00]} Nxe6 {[%emt 0:00:04]} 27. Qc4 {[%emt 0:00:00]} dxe2 {[%emt 0:00:21]} 28. R5g4 {[%emt 0:00:00] Dodges Nhf4} g5 {[%emt 0:00:36]} 29. Qxe2 {[%emt 0:00:00]} Nhf4 {[%emt 0:00:13]} 30. Qf3 {[%emt 0:00:05]} Kg8 {[%emt 0:02:31]} 31. Kb1 {[%emt 0:00:53]} Rxh3 {[%emt 0:03:19]} 32. R4g3 {[%emt 0:00:26]} Rh2 {[%emt 0:00:21]} 33. Rxg5 {[%emt 0:01:24] Weighted Error Value: White=0.14 (very precise) /Black=0.44  Loses game:     	---       	Black=1      Mistake:       	White=1     	Black=3      Inaccurate:     	White=2     	Black=3      OK:         	White=12    	Black=5      Best:        	White=3     	---} 1-0

[Event "2nd Bundesliga Nord 2024-25"]
[Site "Germany"]
[Date "2025.02.23"]
[Round "9.2"]
[White "Xu, Xianliang"]
[Black "Colbow, Collin"]
[Result "0-1"]
[Annotator "TA"]
[ECO "B22"]
[WhiteElo "2470"]
[BlackElo "2442"]
[PlyCount "92"]
[EventDate "2024.11.29"]
[EventType "team-tourn"]
[EventCountry "GER"]
[SourceTitle "playchess.com"]
[Source "ChessBase"]
[SourceQuality "1"]
[TimeControl "40/5400+30:1800+30"]

{[%evp 13,92,4,19,0,0,8,4,-8,-18,-8,0,-20,-6,-8,-3,-14,-11,-21,-16,-18,-13,-108,-111,-110,-110,-110,-110,-119,-100,-118,-97,-120,-91,-143,-121,-133,-130,-147,-118,-115,-103,-190,-201,-238,-218,-205,-205,-239,-252,-352,-381,-416,-410,-404,-403,-390,-380,-29961,-344,-29963,-29967,-29945,-29949,-29974,-570,-563,0,-29975,-29977,-29981,-29979,-12841,-6266,-29981,-29982,-29982,-29982,-29981,-29982,-29981,-29982]} 1. e4 {[%emt 0:00:02][%cal Be2e4,Be4e5][%mdl 32]} c5 {[%emt 0:00:48]} 2. c3 {[%emt 0:00:18]} Nf6 {[%emt 0:01:26]} 3. e5 {[%emt 0:00:04]} Nd5 {[%emt 0:00:04]} 4. d4 {[%emt 0:00:04]} cxd4 {[%emt 0:00:06]} 5. Nf3 {[%emt 0:00:07]} e6 {[%emt 0:00:22]} 6. cxd4 {[%emt 0:00:23]} d6 {[%emt 0:00:05]} 7. Bc4 {[%emt 0:00:16]} Be7 {[%emt 0:00:05] is now debated instead of 7...Nc6.} 8. O-O {[%emt 0:00:30] B22: Sicilian: 2 c3.} O-O {[%emt 0:00:07]} 9. Qe2 {[%emt 0:01:28]} b6 {[%emt 0:01:29]} 10. Nc3 {[%emt 0:10:34] The position is equal.} Nxc3 {[%emt 0:04:11]} 11. bxc3 {[%emt 0:01:04]} Bb7 {[%emt 0:12:55]} 12. Bf4 {[%emt 0:07:09]} (12. Rd1 $5) 12... dxe5 {[%emt 0:03:00]} 13. Nxe5 {[%emt 0:01:39]} Nc6 {[%emt 0:00:57]} 14. Bd3 {[%emt 0:03:22]} Nxe5 {[%emt 0:09:16]} 15. Bxe5 {[%emt 0:01:00]} Rc8 {[%emt 0:11:59]} 16. Rac1 {[%emt 0:08:57]} Bd6 $40 {[%emt 0:08:14][%mdl 128] Black has some attack.} 17. Be4 $146 {[%emt 0:12:52]} (17. c4 $11 {keeps the balance.}) (17. f4 g6 18. Qg4 Rc7 19. h4 h5 20. Qg3 Bxe5 21. fxe5 Rxc3 22. Rxc3 Qxd4+ 23. Kh2 Qxc3 24. Rf6 Kh8 25. Qe3 Kg8 26. Qg3 Kh8 27. Qe3 Kg8 28. Qg3 {½-½ Ferguson,M (2393)-Gordon,S (2535) BCF-chTc 1112 (4NCL) 2011 (11.115)}) 17... Bxe5 $17 {[%emt 0:02:13]} 18. dxe5 {[%emt 0:02:48]} Bxe4 {[%emt 0:01:34]} 19. Qxe4 {[%emt 0:00:04]} Rc5 {[%emt 0:01:33]} 20. f4 {[%emt 0:05:54]} Qc7 {[%emt 0:06:24][%cal Of8c8]} 21. Rf3 {[%emt 0:02:13]} Rc4 {[%emt 0:05:13]} 22. Qe2 {[%emt 0:07:58]} g6 {[%emt 0:04:23]} 23. g3 {[%emt 0:03:41]} (23. h3 $142) 23... Kg7 {[%emt 0:02:11]} 24. Rd3 {[%emt 0:01:46]} Rc8 {[%emt 0:02:38]} 25. Qd2 {[%emt 0:02:18]} Qc5+ {[%emt 0:02:23]} 26. Kg2 {[%emt 0:01:36]} h5 {[%emt 0:02:30]} 27. h4 {[%emt 0:02:20]} (27. Kh3 $17 {might work better.}) 27... b5 $19 {[%emt 0:04:17]} 28. Rb1 {[%emt 0:03:13]} a6 {[%emt 0:01:38]} (28... Rxc3 29. Rxc3 Qxc3 30. Qxc3 Rxc3 31. Rxb5 $15) 29. Rb3 {[%emt 0:00:58]} a5 {[%emt 0:00:42] ...b4 would now be deadly.} 30. Kh3 {[%emt 0:00:57]} Qg1 {[%emt 0:07:36]} 31. Qg2 {[%emt 0:00:46] Prevents Qh1+} Qc1 {[%emt 0:01:37][%cal Rc4c3]} 32. Rxb5 {[%emt 0:02:49]} Rxc3 {[%emt 0:00:14]} 33. Rxc3 {[%emt 0:00:19]} Rxc3 {[%emt 0:00:08][%mdl 4096] Endgame KQR-KQR} 34. Rb2 {[%emt 0:01:16] Against Rc2} Qxf4 {[%emt 0:00:43]} 35. Re2 $2 {[%emt 0:01:40]} (35. Rf2 $19 Qxe5 36. Kh2) 35... Qg4+ {[%emt 0:01:28]} 36. Kh2 {[%emt 0:00:11] [#]} Rxg3 $3 {[%emt 0:00:18][%mdl 512]} 37. Qxg3 {[%emt 0:00:29]} Qxe2+ {[%emt 0:00:06] KQ-KQ. Black is two pawns up.} 38. Kh1 {[%emt 0:00:50]} Qf1+ {[%emt 0:00:13]} (38... Qxa2 $142 39. Qf4 Kg8 40. Qg5 a4 41. Kg1 Qb1+ 42. Kh2 Qc2+ 43. Kg3 Qc3+ 44. Kg2 Qc2+ 45. Kg3) 39. Kh2 {[%emt 0:00:08]} Qe2+ {[%emt 0:00:03]} (39... Qf5 $19 40. a3 Qc2+ 41. Kg1 Qe2) 40. Kh1 $1 {[%emt 0:00:08]} Qxa2 {[%emt 0:00:20]} 41. Qg5 {[%emt 0:31:25]} Qb1+ {[%emt 0:30:28]} 42. Kh2 {[%emt 0:00:09]} Qc2+ {[%emt 0:00:41]} 43. Kh1 {[%emt 0:00:08]} Qd1+ {[%emt 0:00:12] Black mates.} 44. Kh2 {[%emt 0:00:06]} Qe2+ {[%emt 0:00:13]} 45. Kh1 {[%emt 0:00:25]} Qf3+ {[%emt 0:00:04]} 46. Kh2 {[%emt 0:00:08]} a4 {[%emt 0:00:31] Weighted Error Value: White=0.56/Black=0.46  Mistake:       	White=4     	---        Inaccurate:     	White=2     	---        OK:         	White=7     	Black=14     Best:        	---       	Black=4      Strong:       	White=1     	---} 0-1